Cogmind - Beta 9.6 @@@ ROGUE MODE // 2020.06.02 @ 13:49:11 Player: Vectis Result: Destroyed by S-27 Virus with Autogun Performance ------------- Evolutions (3) 1500 Regions Visited (6) 1200 Robots Destroyed (115) 575 Value Destroyed (3280) 3280 Prototype IDs (27) 540 Alien Tech Used (0) 0 Bonus (274) 274 TOTAL SCORE: 7369 Bonus ------- High Alert Combat Kills 17 Aligned with FarCom 300 Friendly Fire -43 Cogmind --------- Core Integrity 0/700 Matter 267/300 Energy 100/100 System Corruption 4% Temperature Cool (0) Movement Core (200) Ox3 Location -7/Factory Parts ------- > --- POWER (1) -------- (None) > --- PROPULSION (3) --- (None) > --- UTILITY (7) ------ Medium Storage Unit Hacking Suite Hacking Suite System Shield System Shield > --- WEAPON (2) ------- Axe > --- INVENTORY (8) ---- Improved Heat Sink Guided Plasma Cannon Missile Launcher Improved Datajack Chainsword Chainsword Peak State ------------ > --- POWER ------------ Nuclear Core > --- PROPULSION ------- Improved Hover Unit Improved Hover Unit Improved Hover Unit > --- UTILITY ---------- Advanced Heat Sink High-capacity Storage Unit High-capacity Storage Unit Target Analyzer Hacking Suite Hacking Suite System Shield > --- WEAPON ----------- Guided Plasma Cannon Assault Cannon > --- INVENTORY -------- Light Nuclear Core Light Nuclear Core Improved Hover Unit Improved Hover Unit VTOL Module Improved Flight Unit Medium Storage Unit High-capacity Storage Unit High-capacity Matter Pod High-capacity Matter Pod Advanced Weight Redist. System Advanced Terrain Scanner Improved ECM Suite Maneuvering Thrusters Gauss Rifle Assault Cannon Missile Launcher Improved Datajack [Rating: 43] Favorites ----------- Power Nuclear Core Engine Ion Engine Power Core Nuclear Core Propulsion Light Treads Treads Light Treads Wheel Wheel Hover Unit Improved Hover Unit Utility High-capacity Storage Unit Device Advanced Heat Sink Storage High-capacity Storage Unit Processor Target Analyzer Hackware Hacking Suite Weapon Light Assault Rifle Energy Gun Medium Laser Energy Cannon Guided Plasma Cannon Ballistic Gun Light Assault Rifle Ballistic Cannon Assault Cannon Launcher Missile Launcher Slashing Weapon Chainsword Build | -11 -10 -10 -10 -9 -8 -7 ------- Run | Scr Mat Min Exi Min Mat Fac Slots Evolved 6 | . . . . . 4 2 Power . | . . . . . . . Propulsion 1 | . . . . . 1 . Utility 5 | . . . . . 3 2 Weapon . | . . . . . . . Parts Attached 125 | 8 22 6 3 1 52 33 Power 9 | 2 2 1 . . 3 1 Engine 5 | 2 2 . . . 1 . Core 4 | . . 1 . . 2 1 Reactor . | . . . . . . . Propulsion 27 | 2 5 . . . 10 10 Treads 17 | 2 5 . . . 7 3 Leg . | . . . . . . . Wheel 2 | . . . . . 2 . Hover 8 | . . . . . 1 7 Flight . | . . . . . . . Utility 26 | 2 2 . 2 . 10 10 Device 10 | 1 . . . . 6 3 Storage 6 | 1 2 . 2 . . 1 Processor 2 | . . . . . 2 . Hackware 8 | . . . . . 2 6 Protection . | . . . . . . . Artifact . | . . . . . . . Weapon 63 | 2 13 5 1 1 29 12 Energy Gun 4 | 2 2 . . . . . Energy Cannon 15 | . . . 1 . 13 1 Ballistic Gun 16 | . 6 1 . 1 5 3 Ballistic Cannon 13 | . . 2 . . 9 2 Launcher 1 | . . . . . . 1 Special Weapon . | . . . . . . . Impact Weapon . | . . . . . . . Slashing Weapon 14 | . 5 2 . . 2 5 Piercing Weapon . | . . . . . . . Special Melee Weapon . | . . . . . . . Unidentified Prototypes . | . . . . . . . Parts Lost 33 | . 3 . . 1 8 21 Power 2 | . . . . . . 2 Propulsion 15 | . . . . 1 3 11 Utility 7 | . 1 . . . 1 5 Weapon 9 | . 2 . . . 4 3 Highest Loss Streak 8 | . 2 . . 1 2 8 Average Slot Usage (%) 96 | . 99 100 100 100 94 95 Engine 3 | . 14 9 . . 3 . Core 6 | . . 4 14 14 5 6 Treads 15 | . 28 28 28 28 14 2 Wheel 4 | . . . . . 8 5 Hover 5 | . . . . . 2 13 Device 5 | . 4 . . . 7 7 Storage 18 | . 22 28 28 28 18 11 Processor 5 | . . . . . 10 5 Hackware 9 | . . . . . 4 25 Energy Gun 1 | . 11 . . . . . Energy Cannon 3 | . . . . 6 6 2 Ballistic Gun 7 | . 14 22 14 7 2 1 Ballistic Cannon 5 | . . 4 14 14 8 4 Slashing Weapon 2 | . 1 . . . . 5 Naked Turns . | . . . . . . . Heaviest Build 87 | 13 16 17 82 82 87 87 Greatest Support 60 | 40 40 40 40 40 60 60 Greatest Overweight (x) 8 | . . . 2 3 8 4 Average Overweight (x) 1 | . . . . 1 3 1 Largest Inventory Capacity 24 | 6 8 8 20 20 20 24 Average Capacity 14 | 5 7 8 18 20 20 14 Most Carried 20 | 5 8 8 14 15 20 20 Average Carried 13 | 3 6 7 10 14 18 13 Final Capacity 20 | 6 8 8 20 20 20 8 Final Carried 19 | 5 8 8 14 15 19 6 Class Distribution -------------------- 30% | Hauler-Mutant 29% | Hacker-Mutant 26% | Mutant 7% | Hauler-Skirmisher 5% | Scavenger-Mutant Dominant Class ---------------- Mutant | -10/Materials Mutant | -10/Mines Hauler-Mutant | -10/Exiles Hauler-Mutant | -9/Mines Hauler-Mutant | -8/Materials Hacker-Mutant | -7/Factory Resources | -11 -10 -10 -10 -9 -8 -7 ----------- Run | Scr Mat Min Exi Min Mat Fac Matter Collected 2435 | 280 362 131 50 10 930 672 Remotely . | . . . . . . . Salvage Created 4055 | 127 765 109 . . 1989 1065 Parts 233 | 7 45 12 . . 119 50 Haulers Intercepted 1 | . 1 . . . . . Recyclers Shooed 4 | . 2 . . . . 2 Parts Field Recycled . | . . . . . . . Retrieved Matter . | . . . . . . . Parts Self-Destructed . | . . . . . . . Prevented . | . . . . . . . Kills | -11 -10 -10 -10 -9 -8 -7 ------- Run | Scr Mat Min Exi Min Mat Fac Combat Hostiles Destroyed 80 | . 14 5 . . 39 22 Melee 8 | . . . . . 1 7 Guns 26 | . 14 4 . . 5 3 Cannons 42 | . . 1 . . 33 8 AOE 4 | . . . . . . 4 Classes Destroyed 12 | 3 5 . . . 3 1 Worker 8 | 1 . . . . 5 2 Builder 2 | . . . . . 2 . Tunneler 3 | 2 . . . . 1 . Hauler 1 | . 1 . . . . . Recycler 8 | 1 3 . . . 2 2 Operator 4 | . 2 . . . 1 1 Watcher 9 | . 2 . . . 5 2 Swarmer 28 | . 6 3 . . 11 8 Grunt 28 | . 8 2 . . 14 4 Sentry 15 | . . . . . 11 4 Hunter 4 | . . . . . 3 1 Programmer 5 | . . . . . . 5 Best Kill Streak 6 | 2 3 3 . . 6 4 Combat Bots Only 6 | . 3 3 . . 6 4 Max Kills in Single Turn 2 | 1 1 1 . . 2 2 Gunslinging . | . . . . . . . Exploded 2 | . . . . . . 2 Melee 1 | . . . . . 1 1 Uniques/NPCs Destroyed . | . . . . . . . Combat | -11 -10 -10 -10 -9 -8 -7 -------- Run | Scr Mat Min Exi Min Mat Fac Damage Taken 5214 | . 457 297 . 116 1910 2434 Core 1162 | . 76 87 . 15 279 705 Absorbed by Shields 111 | . . . . . 111 . Core Remaining (%) 59 | 100 . . . 28 49 . Volleys Fired 326 | 9 75 17 . . 149 76 Largest 2 | 2 2 2 . . 2 2 Hottest 120 | 90 90 55 . . 120 120 Shots Fired 517 | 18 148 34 . . 226 91 Gun 249 | 18 148 25 . . 37 21 Cannon 264 | . . 9 . . 189 66 Launcher 4 | . . . . . . 4 Special . | . . . . . . . Kinetic 304 | . 97 34 . . 117 56 Thermal 209 | 18 51 . . . 109 31 Explosive 4 | . . . . . . 4 Electromagnetic . | . . . . . . . Robot Hit Streak 20 | 4 15 5 . . 20 13 Robot Miss Streak 7 | 2 3 2 . . 7 7 Penetration Max 1 | . . . . . . 1 Secondary Targets 3 | . 1 2 . . . . Max Gunslinging Chain 1 | . 1 1 . . . . Shots Hit Robots 322 | 10 104 18 . . 113 77 Core Hits 169 | 5 41 10 . . 74 39 Critical Hits 4 | . . 2 . . 2 . Critical Kills 2 | . . 1 . . 1 . Critical Parts Destroyed 2 | . . 1 . . 1 . Melee Attacks 89 | . 16 6 . . 9 58 Impact . | . . . . . . . Slashing 89 | . 16 6 . . 9 58 Piercing . | . . . . . . . Sneak Attacks 9 | . 3 . . . 1 5 Combat Hostiles . | . . . . . . . Follow-up Attacks 4 | . . . . . . 4 Damage Inflicted 8693 | 117 1232 187 . . 3823 3334 Guns 1682 | 117 924 109 . . 312 220 Cannons 4410 | . . 78 . . 3368 964 Explosions 303 | . . . . . . 303 Melee 2298 | . 308 . . . 143 1847 Ramming . | . . . . . . . Kinetic 2788 | . 537 187 . . 1267 797 Thermal 3304 | 117 387 . . . 2413 387 Explosive 303 | . . . . . . 303 Electromagnetic . | . . . . . . . Impact . | . . . . . . . Slashing 2298 | . 308 . . . 143 1847 Piercing . | . . . . . . . Highest Corruption 7 | . . . . . . 7 Average Corruption 5 | . . . . . . 5 Corruption Purged 4 | . . . . . . 4 Effects 90 | . . . . . . 90 Message Errors 20 | . . . . . . 20 Matter Fused 16 | . . . . . . 16 Heat Flow Errors 12 | . . . . . . 12 Energy Discharges 14 | . . . . . . 14 Parts Rejected 2 | . . . . . . 2 Data Loss (minor) 12 | . . . . . . 12 Data Loss (major) 2 | . . . . . . 2 Misfires 4 | . . . . . . 4 Targeting Errors 6 | . . . . . . 6 Weapon Failures 2 | . . . . . . 2 Overload Shots . | . . . . . . . Overflow Damage 565 | . 109 . . . 113 343 Projectiles 129 | . . . . . 113 16 Explosions . | . . . . . . . Melee 436 | . 109 . . . . 327 Knockbacks 15 | . . 1 . . 10 4 Impact . | . . . . . . . Kinetic 14 | . . 1 . . 9 4 Secondary 1 | . . . . . 1 . Self-Inflicted Damage . | . . . . . . . Shots . | . . . . . . . Rammed 2 | . . . . . . 2 Targets Rammed 2 | . . . . . . 2 Kicked . | . . . . . . . Crushed . | . . . . . . . Highest Temperature 299 | 90 232 70 . 4 299 276 Average Temperature 75 | 41 71 33 . 4 85 66 Received Heat Transfer 1052 | . 153 78 . 20 681 120 Effects 1 | . . . . . 1 . Energy Bleed 1 | . . . . . 1 . Siege Activations . | . . . . . . . Robots Corrupted . | . . . . . . . Combat Hostiles . | . . . . . . . Parts Fried . | . . . . . . . Impact Corruptions . | . . . . . . . Robots Melted . | . . . . . . . Combat Hostiles . | . . . . . . . Parts Melted 11 | 1 1 . . . 6 3 Heat Transferred 7166 | 334 1088 . . . 4944 800 Parts Sabotaged . | . . . . . . . Parts Stolen . | . . . . . . . Parts Stripped . | . . . . . . . Power Chain Reactions . | . . . . . . . Missiles Intercepted . | . . . . . . . Alert | -11 -10 -10 -10 -9 -8 -7 ------- Run | Scr Mat Min Exi Min Mat Fac Peak Influence 449 | 20 142 103 . . 449 317 Average Influence 85 | 8 62 30 . . 142 70 Maximum Alert Level 2 | . . . . . 2 1 Low Security (%) 92 | 100 100 100 . 100 84 94 Level 1 5 | . . . . . 11 5 Level 2 1 | . . . . . 4 . Level 3 . | . . . . . . . Level 4 . | . . . . . . . Level 5 . | . . . . . . . High Security . | . . . . . . . Max Security . | . . . . . . . Squads Dispatched 16 | . 3 . . . 8 5 Investigation 3 | . 1 . . . 2 . Extermination 5 | . . . . . . 5 Reinforcement 3 | . 2 . . . 1 . Assault . | . . . . . . . Garrison 5 | . . . . . 5 . Intercept . | . . . . . . . Construction Impeded . | . . . . . . . Haulers Reinforced . | . . . . . . . Stealth | -11 -10 -10 -10 -9 -8 -7 --------- Run | Scr Mat Min Exi Min Mat Fac Distress Signals 6 | . . . . . 3 3 Communications Jammed . | . . . . . . . Distress Signals . | . . . . . . . Times Spotted 129 | . 29 5 . 10 44 41 Peak Tracking Total 11 | . 4 3 . 11 7 6 Tactical Retreats 8 | . 1 . . . 5 2 Traps | -11 -10 -10 -10 -9 -8 -7 ------- Run | Scr Mat Min Exi Min Mat Fac Traps Triggered 1 | . . . . . 1 . Indirectly . | . . . . . . . Trap Hack Attempts . | . . . . . . . Triggered . | . . . . . . . Disarmed 6 | . . . . . 6 . Reprogrammed . | . . . . . . . Reused . | . . . . . . . Traps Extracted . | . . . . . . . Installed . | . . . . . . . Triggered . | . . . . . . . Machines | -11 -10 -10 -10 -9 -8 -7 ---------- Run | Scr Mat Min Exi Min Mat Fac Machines Disabled 6 | . . 1 . . 2 3 Max in Single Turn 1 | . . 1 . . 1 1 Garrison Access 1 | . . . . . 1 . Machines Sabotaged . | . . . . . . . Garrisons Compromised . | . . . . . . . Overloaded Fab Kills . | . . . . . . . Fab Network Shutdowns . | . . . . . . . Hacking | -11 -10 -10 -10 -9 -8 -7 --------- Run | Scr Mat Min Exi Min Mat Fac Machines Accessed 36 | . 6 . 2 . 15 13 Terminals 20 | . 3 . . . 11 6 Fabricators 4 | . . . . . . 4 Repair Stations 2 | . 1 . . . 1 . Recycling Units 5 | . 2 . . . 1 2 Scanalyzers 1 | . . . . . 1 . Garrison Access 2 | . . . . . 1 1 Total Hacks 133 | . 30 . 5 . 53 45 Successful 99 | . 14 . 5 . 39 41 Failed 33 | . 16 . . . 13 4 Catastrophic 1 | . 1 . . . . . Database Lockouts 1 | . . . . . 1 . Manual 83 | . 17 . 1 . 34 31 Terminals 84 | . 18 . . . 39 27 Fabricators 14 | . . . . . . 14 Repair Stations 4 | . 2 . . . 2 . Recycling Units 14 | . 10 . . . 1 3 Scanalyzers 9 | . . . . . 9 . Garrison Access 3 | . . . . . 2 1 Terminal Hacks 41 | . 5 . 5 . 17 14 Record 4 | . . . 4 . . . Part Schematic 2 | . . . . . 1 1 Robot Schematic 5 | . . . . . 3 2 Robot Analysis 3 | . . . . . . 3 Prototype ID Bank 2 | . . . . . 2 . Branch Access Points 3 | . 1 . . . 1 1 Machine Index 1 | . . . . . . 1 Terminal Index 1 | . . . . . . 1 Alert Level 3 | . . . . . 2 1 Unreport Threat 4 | . . . . . 3 1 Disarm Traps 1 | . . . . . 1 . Security Status 1 | . 1 . . . . . Patrol Status 4 | . 2 . . . 1 1 Recall Investigation 1 | . . . . . 1 . Zone Layout 5 | . 1 . . . 2 2 EX-Prototype ID Bank 1 | . . . 1 . . . Fabricator Hacks 9 | . . . . . . 9 Load Schematic 4 | . . . . . . 4 Build 5 | . . . . . . 5 Repair Station Hacks 3 | . 1 . . . 2 . Scan Component 2 | . 1 . . . 1 . Repair 1 | . . . . . 1 . Recycling Unit Hacks 3 | . 2 . . . . 1 Retrieve Components 3 | . 2 . . . . 1 Scanalyzer 9 | . . . . . 9 . Insert Component 3 | . . . . . 3 . Analyze 6 | . . . . . 6 . Garrison Access Hacks 1 | . . . . . 1 . Seal Access 1 | . . . . . 1 . Unauthorized Hacks 33 | . 6 . . . 10 17 Terminals 23 | . 4 . . . 9 10 Track 1 | . . . . . . 1 Assimilate 8 | . 3 . . . 3 2 Botnet 11 | . . . . . 5 6 Operators 3 | . 1 . . . 1 1 Fabricators 4 | . . . . . . 4 Report 1 | . . . . . . 1 Siphon 3 | . . . . . . 3 Repair Stations . | . . . . . . . Recycling Units 5 | . 2 . . . 1 2 Mask 5 | . 2 . . . 1 2 Scanalyzers . | . . . . . . . Garrison Access 1 | . . . . . . 1 Reprogram 1 | . . . . . . 1 Data Cores Recovered . | . . . . . . . Used . | . . . . . . . Hacking Detections 27 | . 5 . . . 12 10 Full Trace Events 3 | . 2 . . . 1 . Feedback Events 1 | . . . . . 1 . Hackware Fried 1 | . . . . . 1 . Feedback Blocked . | . . . . . . . Robot Schematics Acquired 5 | . . . . . 3 2 Robots Built 3 | . . . . . . 3 Matter 602 | . . . . . . 602 Time 174 | . . . . . . 174 Total Robot Build Rating 9 | . . . . . . 9 Part Schematics Acquired 5 | . . . . . 4 1 Parts Built 1 | . . . . . . 1 Matter 146 | . . . . . . 146 Time 73 | . . . . . . 73 Total Part Build Rating 3 | . . . . . . 3 Parts Repaired 1 | . . . . . 1 . Time 26 | . . . . . 26 . Parts Recycled . | . . . . . . . Recycled Matter . | . . . . . . . Retrieved Matter . | . . . . . . . Retrieved Components 26 | . 17 . . . . 9 Parts Scanalyzed 3 | . . . . . 3 . Part Schematics Acquired 3 | . . . . . 3 . Parts Damaged 1 | . . . . . 1 . Bothacking | -11 -10 -10 -10 -9 -8 -7 ------------ Run | Scr Mat Min Exi Min Mat Fac Used RIF Installer . | . . . . . . . Robots Hacked . | . . . . . . . Non-combat . | . . . . . . . Combat . | . . . . . . . Robot Hacks Applied . | . . . . . . . Relay Couplers Released . | . . . . . . . Robots Rewired . | . . . . . . . Allies Hacked . | . . . . . . . Hacks Repelled . | . . . . . . . Allies | -11 -10 -10 -10 -9 -8 -7 -------- Run | Scr Mat Min Exi Min Mat Fac Total Allies 11 | . 2 . . 1 2 6 Largest Group 7 | . 2 1 1 2 2 7 Highest-Rated Group 151 | . 20 10 10 41 20 151 Highest-Rated Ally 31 | . 10 10 10 31 10 27 Total Orders 96 | . 27 6 . 4 19 40 STAY 46 | . 13 3 . 2 8 20 GOTO 3 | . . . . . 1 2 FOLLOW 47 | . 14 3 . 2 10 18 Ally Attacks 2 | . . . . 2 . . Total Damage . | . . . . . . . Kills . | . . . . . . . Allies Corrupted . | . . . . . . . Allies Melted . | . . . . . . . Intel | -11 -10 -10 -10 -9 -8 -7 ------- Run | Scr Mat Min Exi Min Mat Fac Robot Analysis Total 3 | . . . . . . 3 Derelict Logs Recovered 3 | . . 2 . 1 . . Drone Launches . | . . . . . . . Drone Recoveries . | . . . . . . . Exploration | -11 -10 -10 -10 -9 -8 -7 ------------- Run | Scr Mat Min Exi Min Mat Fac Turns Passed 10196 | 153 1340 1147 865 221 3121 3349 Spaces Moved 6072 | 78 560 656 483 111 1530 2654 Core 16 | 12 . . . . . 4 Treads 2533 | 66 560 656 483 111 448 209 Legs . | . . . . . . . Wheels 1844 | . . . . . 1082 762 Hover 1679 | . . . . . . 1679 Flight . | . . . . . . . Fastest Speed 50 | 50 160 160 160 180 120 52 Average Speed 128 | 143 160 160 176 189 138 95 Slowest Speed 250 | 160 160 160 200 220 250 250 Overloaded Moves . | . . . . . . . Propulsion Burnouts . | . . . . . . . Robots Hopped . | . . . . . . . Cave-ins Triggered 1 | . . . . . . 1 Exploration Rate (%) 59 | 5 64 96 90 42 96 24 Regions Visited 6 Branch Regions 3 Pre-discovered Areas 2 | . . 1 1 . . . Known Exits Taken 1 | . 1 . . . . . Unknown Exits Taken 5 | 1 . 1 1 1 1 . Scrap Searched 3 | . . 2 . 1 . . Spaces Dug 50 | . 4 3 . . 19 24 Terrain Destroyed 109 | . 4 3 . . 34 68 Melee 17 | . 4 3 . . 7 3 Projectile 49 | . . . . . 27 22 AOE 43 | . . . . . . 43 Actions | -11 -10 -10 -10 -9 -8 -7 --------- Run | Scr Mat Min Exi Min Mat Fac Total 7854 | 98 846 714 495 122 2281 3298 Wait 1134 | . 147 25 . 10 495 457 Move 6066 | 77 559 655 482 110 1529 2654 Hop . | . . . . . . . Pick Up 59 | 4 12 1 7 1 26 8 Fast Attach 34 | 7 2 2 . . 11 12 Attach 26 | . 3 1 . . 9 13 Detach 1 | . . . . . . 1 Swap 65 | 1 17 3 3 1 32 8 Drop 59 | . 15 4 3 . 21 16 Fire 326 | 9 75 17 . . 149 76 Melee 82 | . 16 6 . . 9 51 Ram . | . . . . . . . Kick . | . . . . . . . Crush 2 | . . . . . . 2 Escape Stasis . | . . . . . . . Rewire . | . . . . . . . Trap . | . . . . . . . Miscellaneous . | . . . . . . . Route ------- -11/Scrapyard -10/Materials (discovered 3 exits: [*Mat x2] / *Min) -10/Mines (discovered 3 exits: [*Mat x2] / *Exi) -10/Exiles -9/Mines -8/Materials (discovered 3 exits: *Fac x3) -7/Factory (discovered 3 exits: [Fac] / Low x2) History --------- Turn | Location | Event 2 | -11/Scrapyard | Discovered new exit (range 16) 154 | -11/Scrapyard | Entered Materials 268 | -10/Materials | Discovered new exit (range 15) 268 | -10/Materials | Identified exit to Mines 307 | -10/Materials | Build established: Mutant 1343 | -10/Materials | Discovered new exit (range 3) 1494 | -10/Materials | Entered Mines 1494 | -10/Mines | Accompanied by 1 ally 1729 | -10/Mines | Core integrity fell below 50% 1769 | -10/Mines | Learned Materials terminal intel 1777 | -10/Mines | Discovered new exit (range 4) 2129 | -10/Mines | Discovered new exit (range 8) 2159 | -10/Mines | Assisted by bots powering up and referring to "LRC-V3" 2402 | -10/Mines | Learned location of Zion (-7) 2504 | -10/Mines | Deemed a non-threat by the Exiles lab entrance 2558 | -10/Mines | A weapon hastily lodged in a ceiling crevice suddenly fell to the ground 2635 | -10/Mines | Discovered new exit (range 5) 2641 | -10/Mines | Entered Exiles 2641 | -10/Exiles | Accompanied by 1 ally 2681 | -10/Exiles | Met 8R-AWN 2707 | -10/Exiles | Met EX-HEX 2849 | -10/Exiles | Visited The Gauntlet 3005 | -10/Exiles | Met EX-DEC 3069 | -10/Exiles | Build established: Hauler-Mutant 3253 | -10/Exiles | Met EX-BIN 3280 | -10/Exiles | Aligned with FarCom system 3282 | -10/Exiles | Given EX-Vault access code 3324 | -10/Exiles | Opened EX-Vault 3333 | -10/Exiles | Found Gui. Plasma Cannon 3368 | -10/Exiles | Warned to stay clear of 0b10 Research branches 3479 | -10/Exiles | Discovered new exit (range 14) 3506 | -10/Exiles | Left Exiles lab with Gui. Plasma Cannon 3506 | -10/Exiles | Entered Mines 3506 | -9/Mines | Accompanied by 1 ally 3509 | -9/Mines | Received a Mining Laser from a helpful Derelict 3528 | -9/Mines | Received a Rocket Launcher from a helpful Derelict 3557 | -9/Mines | Met a Derelict bent on vengeance 3573 | -9/Mines | Learned Materials emergency access door positions 3694 | -9/Mines | Discovered new exit (range 12) 3695 | -9/Mines | Assembled infested the area 3727 | -9/Mines | Entered Materials 3727 | -8/Materials | Evolved 4 slots: Propulsion x1, Utility x3 3729 | -8/Materials | Loaded intel: 12 terminal locations 4325 | -8/Materials | Hacking Suite fried by hacking feedback 4403 | -8/Materials | Repaired Lgt. Treads 4468 | -8/Materials | Discovered new exit (range 9) 4768 | -8/Materials | Garrison activated, responded to threat 5041 | -8/Materials | Build established: Hauler-Skirmisher 5221 | -8/Materials | Garrison activated, responded to threat 5538 | -8/Materials | Discovered new exit (range 5) 5556 | -8/Materials | Build established: Scavenger-Mutant 6007 | -8/Materials | Build established: Hauler-Mutant 6093 | -8/Materials | Central database locked down 6118 | -8/Materials | Core integrity fell below 50% 6628 | -8/Materials | Discovered new exit (range 13) 6848 | -8/Materials | Entered Factory 6848 | -7/Factory | Accompanied by 2 allies 6848 | -7/Factory | Evolved 2 slots: Utility x2 6934 | -7/Factory | Crushed by falling debris 7428 | -7/Factory | Build established: Hacker-Mutant 7832 | -7/Factory | Fabricated O-24 Administrator? 8335 | -7/Factory | Fabricated O-24 Administrator? 8715 | -7/Factory | Fabricated O-24 Administrator? 8729 | -7/Factory | Discovered new exit (range 16) 8867 | -7/Factory | Lost 3 parts (2n1u) 9338 | -7/Factory | Fabricated System Shield (x1) 9359 | -7/Factory | Identified exit to Lower Caves 9704 | -7/Factory | Core integrity fell below 50% 9738 | -7/Factory | Lost 5 parts (1p3n1u) 10174 | -7/Factory | Core integrity fell below 20% 10197 | -7/Factory | Destroyed by S-27 Virus with Autogun Last Messages --------------- 10172_ Slug penetrates Wall. 10172_ Penetrated by Slug. 10172_ U-05 Engineer destroyed. 10172_ Gauss Rifle destroyed. 10173_ K-01 Serf collects debris. 10176_ Penetrated by Slug. 10177_ Acquired 4 matter. 10178_ K-01 Serf collects debris. 10183_ K-01 Serf cleans the Fusion Modulator. 10184_ K-01 Serf collects debris. 10185_ Slug penetrates Wall. 10188_ K-01 Serf cleans the Fusion Modulator. 10188_ Penetrated by Slug. 10188_ K-01 Serf destroyed. 10189_ Acquired 14 matter. 10190_ Destroyed Lgt. Nuclear Core. 10191_ Penetrated by Slug. 10192_ K-01 Serf collects debris. 10193_ H-55 Commando destroyed. 10195_ K-01 Serf collects debris. Map ----- +----------------------------------------------------+ | # = #?????????????##??# #???###### | | """" # / = ##############????# ##### | | """" # # ###### | | """" # ""="" # / T | | """" # ""F"" # """ !! ###### | | # ! """ #??""" !! #??####+###### | | """" # #??""" !! #??# ### # | | """" ###+#######? [ #??# """ #?# # | | """" #??? #??# """ #?# # | | """" #??# """" """" #??# """ #?# | | #??# """" """" #??# #?# # | | #??????""" """" #??# """ #?# # | | #???????"" """" ???# = """ #?# # | | ########## #????????? ?? ???# """ #?# | | ?????????# ##########/#####???#[ #?# | | ?????????# ^ #????##########?# | | ?????????# #???????????????##+## | | ########## """ """ """ """ #????????????????# | | # # """ """ """t""" #????????????????# "" | | # """" # """ """ """ """ #???????????????????? | | # """" #^^ ^ ^ #???????????????????? | | # """" # """ """ #######?????????????? | | # """" # """ """ ^ ! #???????? | | # """" + """ """ kw " F"s #######?????????????? | | # """" # "" #???????????????????? | | # """" # %%@*%%#???????????????????? | | # # u% %% #???????????????????? | | ########## ###########k#######???????????????? | | # w #????# =%%% #???????????????? | | # #????# % |== #???????????????? | | / # #????# %"""" #???????????????? | | / """ + #????# """" ! #???????????????? | | """ # #????# """" % #???????????????? | | """ # #????# """" * #???????????????? | | # #????# """" #???????????????? | | ######+### #????# """" # ??????????????? | | ????? #????# """" # ?????????????? | | ???? #????# %! !# ????????????? | | ??? #????# !# ??????????? | | ?? ? #????# ! #g ?????????? | | ? ? ? #????####### #+#### ??????????? | | ?###???#########?????????? ???????????? | | ?????????????????????????? % ?????????????? | | ?????????????????????????? = ??????????????? | | ??????????????????????????# ?????????????????? | | ??????????????????????????? ???????????????????? | | ?????????????????????????????????????????????????? | | ?????????????????????????????????????????????????? | | ?????????????????????????????????????????????????? | | ?????????????????????????????????????????????????? | +----------------------------------------------------+ Best States ------------- Heat Dissipation 53 Energy Generation 14 Energy Capacity 265 Matter Stores 300 Matter Capacity 300 Sight Range 16 Terrain Scan Range 20 Terrain Scan Density 10 Evasion (%) 60 Targeting Accuracy 6 Target Analysis 5 Recoil Reduction 3 Offensive Hacking 30 Defensive Hacking 30 Item Schematics ----------------- System Shield | -8/Materials | Hacked Imp. Flight Unit | -8/Materials | Scanalyzed Ripper | -8/Materials | Scanalyzed Maneuvering Thrusters | -8/Materials | Scanalyzed Biomechanical Wings | -7/Factory | Hacked Robot Schematics ------------------ O-24 Administrator | -8/Materials | Hacked M-28 Smith | -8/Materials | Hacked H-55 Commando | -8/Materials | Hacked I-36 Angel | -7/Factory | Hacked P-60 Hacker | -7/Factory | Hacked Fabricated ------------ O-24 Administrator | x1 | -7/Factory O-24 Administrator | x1 | -7/Factory O-24 Administrator | x1 | -7/Factory System Shield | x1 | -7/Factory Alien Tech Used ----------------- None Achievements -------------- None Challenges ------------ None Game ------ Seed AerolevHypercooledProcessor Manual? 0 Play Time 02:17:31 Cumulative 70.1 hours Start 2020.06.02 @ 10:08:59 End 2020.06.02 @ 13:49:11 Sessions 1 Manual Loads 0 Difficulty Rogue Special Mode None Game No. 40 Rogue 40 Adventurer 0 Explorer 0 Win Type - Total 3 Types 2/0/0/1/0/0/0 Lore% 56 Gallery% 56 Achievement% 49 Wizard Run 0 Options --------- ASCII 1 Keyboard 0 Movement Numpad Keybinds 0 Fullscreen 1 Font 18/SmallcapsGlow Map View 76x50 Tactical HUD 1 Map Filters NONE Filters NONE Steam 1 RUN: f017a0a6-7d9f-462d-ad36-e6e1bd1c2a34